bitfinex/quotes_SOLUSD_20241202
["timestamp","ask_amount","ask_price","bid_price","bid_amount"]
[1733173824307,15.41845884,222.89,222.79,91.2920361]
[1733173825124,4.20195884,222.89,222.83,70.0]
[1733173825371,4.20195884,222.89,222.83,91.2920361]
[1733173825633,11.2146,222.93,222.83,91.2920361]
[1733173825838,11.2146,222.93,222.83,70.0]
[1733173827133,20.0,222.9,222.83,70.0]
[1733173827814,11.2146,222.93,222.83,70.0]
[1733173828019,11.2146,222.93,222.86,70.0]
[1733173828626,11.2146,222.93,222.82,70.0]
[1733173828822,11.2146,222.93,222.84,70.0]
[1733173829545,20.0,222.9,222.84,70.0]
[1733173829945,11.216,222.9,222.8,70.0]
[1733173830818,20.0,222.87,222.75,70.0]
[1733173831023,20.0,222.87,222.72,21.2920361]
[1733173831024,20.0,222.87,222.72,70.0]
[1733173831220,20.0,222.87,222.66,91.2920361]
[1733173831221,20.0,222.83,222.66,91.2920361]
[1733173831563,4.19450965,222.82,222.69,70.0]
[1733173831921,20.0,222.78,222.69,70.0]
[1733173832110,20.0,222.78,222.69,91.2920361]
[1733173832736,20.0,222.78,222.69,70.0]
[1733173833043,11.222,222.78,222.69,70.0]
[1733173833432,20.0,222.75,222.69,70.0]
[1733173833618,20.0,222.75,222.67,70.0]
[1733173834734,20.0,222.78,222.67,70.0]
[1733173834933,20.0,222.77,222.67,70.0]
[1733173835726,20.0,222.77,222.67,91.2920361]
[1733173836147,20.0,222.77,222.67,70.0]
[1733173836346,20.0,222.77,222.67,70.895636]
[1733173836555,20.0,222.77,222.7,70.0]
[1733173837345,31.2223,222.77,222.7,70.0]
[1733173837650,31.2223,222.77,222.67,70.0]
[1733173839826,31.2223,222.77,222.67,91.2920361]
[1733173840021,31.2223,222.77,222.71,70.0]
[1733173841153,31.2223,222.77,222.68,70.0]
[1733173842351,31.2223,222.77,222.71,70.0]
[1733173842649,31.2223,222.77,222.68,70.0]
[1733173843242,53.6669,222.77,222.65,70.0]
[1733173844645,53.6669,222.77,222.62,13.31760674]
[1733173844646,20.0,222.75,222.62,70.0]
[1733173844851,20.0,222.74,222.62,70.0]
[1733173845230,20.0,222.74,222.62,83.31760674]
[1733173845558,20.0,222.74,222.65,70.0]
[1733173845843,20.0,222.74,222.65,83.31760674]
[1733173846147,20.0,222.74,222.65,70.0]
[1733173846639,31.224,222.74,222.65,70.0]
[1733173849056,30.96980818,222.74,222.65,70.0]
[1733173849227,30.84979847,222.74,222.65,70.0]
[1733173849430,30.56419024,222.74,222.65,70.0]
[1733173851027,30.56419024,222.74,222.65,83.31760674]
[1733173852246,30.56419024,222.74,222.65,70.0]
[1733173855243,30.56419024,222.74,222.62,70.0]
[1733173855455,30.56419024,222.74,222.59,70.0]
[1733173855456,20.0,222.73,222.59,70.0]
[1733173855626,20.0,222.71,222.59,70.0]
[1733173856130,11.2258,222.7,222.59,70.0]
[1733173856325,20.0,222.67,222.59,70.0]
[1733173859127,11.2258,222.7,222.59,70.0]
[1733173859334,20.0,222.67,222.59,70.0]
[1733173861140,31.2277,222.67,222.56,70.0]
[1733173861841,31.2277,222.67,222.6,70.0]
[1733173862235,11.2255,222.71,222.63,70.0]
[1733173863935,20.0,222.72,222.66,70.0]
[1733173866957,20.0,222.7,222.62,70.0]
[1733173867450,20.0,222.7,222.65,70.0]
[1733173867663,20.0,222.71,222.65,70.0]
[1733173868444,25.22693283,222.77,222.65,70.0]
[1733173868445,2.78233283,222.77,222.65,70.0]
[1733173868761,5.76614715,222.84,222.71,70.0]
[1733173868962,2.79057419,222.83,222.74,70.0]
[1733173869254,11.2201,222.82,222.71,70.0]
[1733173870761,20.0,222.79,222.71,70.0]
[1733173872051,11.2214,222.79,222.71,70.0]
[1733173875573,20.0,222.8,222.74,70.0]
[1733173875861,11.2195,222.83,222.74,70.0]
[1733173876451,43.62620599,222.83,222.69,70.0]
[1733173876657,9.96810599,222.82,222.69,70.0]
[1733173877063,15.8888,222.78,222.69,70.0]
[1733173877249,20.0,222.79,222.69,70.0]
[1733173877449,11.2218,222.78,222.69,70.0]
[1733173878045,11.2218,222.78,222.72,70.0]
[1733173878253,15.42225884,222.82,222.72,70.0]
[1733173878464,15.42225884,222.82,222.75,70.0]
[1733173879569,4.20195884,222.82,222.75,70.0]
[1733173879874,11.2182,222.86,222.78,70.0]
[1733173880549,2.85804434,222.88,222.81,70.0]
[1733173880748,19.25082639,222.89,222.81,70.0]
[1733173881347,11.2167,222.88,222.81,70.0]
[1733173881579,11.2167,222.88,222.78,70.0]
[1733173881757,11.2167,222.88,222.81,70.0]
[1733173884286,0.5266593,222.94,222.86,70.0]
[1733173884486,11.2142,222.93,222.86,70.0]
[1733173884783,11.2142,222.93,222.82,70.0]
[1733173885075,15.40870965,222.93,222.82,70.0]
[1733173885687,20.0,222.9,222.82,70.0]
[1733173887260,4.19450965,222.93,222.85,70.0]
[1733173887756,0.5266593,222.94,222.85,70.0]
[1733173888153,33.6427,222.93,222.82,70.0]
[1733173888386,39.40070165,222.93,222.82,70.0]
[1733173888561,20.0,222.9,222.82,70.0]
[1733173889369,20.0,222.9,222.7,16.2254]
[1733173889370,20.0,222.86,222.76,70.0]
[1733173889789,24.20195884,222.86,222.76,70.0]
[1733173890289,24.20195884,222.86,222.79,70.0]
[1733173890475,20.0,222.86,222.79,70.0]
[1733173891688,11.2162,222.89,222.85,70.0]
[1733173892188,11.2162,222.89,222.82,70.0]
[1733173892360,11.2162,222.89,222.79,70.0]
[1733173892690,11.2162,222.89,222.82,70.0]
[1733173892992,11.2162,222.89,222.79,70.0]
[1733173893482,20.0,222.9,222.79,70.0]
[1733173893658,20.0,222.9,222.82,70.0]
[1733173894675,20.0,222.9,222.79,70.0]
[1733173895168,20.0,222.9,222.76,70.0]
[1733173895398,20.0,222.88,222.77,70.0]
[1733173895691,20.0,222.84,222.77,70.0]
[1733173897670,11.2193,222.83,222.77,70.0]
[1733173897995,11.2193,222.83,222.74,70.0]
[1733173900884,11.2193,222.83,222.71,70.0]
[1733173900885,20.0,222.8,222.71,70.0]
[1733173902903,11.2213,222.79,222.71,70.0]
[1733173903104,20.0,222.76,222.68,70.0]
[1733173904177,11.2233,222.75,222.68,70.0]
[1733173906200,11.2233,222.75,222.64,70.0]
[1733173906580,20.0,222.72,222.64,70.0]
[1733173907009,20.0,222.72,222.61,70.0]
[1733173907584,20.0,222.72,222.58,70.0]
[1733173907804,33.6699,222.75,222.58,70.0]
[1733173907805,20.0,222.71,222.58,70.0]
[1733173908411,20.0,222.67,222.58,70.0]
[1733173909588,20.0,222.67,222.55,70.0]
[1733173909786,20.0,222.67,222.58,70.0]
[1733173910186,20.0,222.67,222.55,70.0]
[1733173910389,20.0,222.63,222.55,70.0]
[1733173910710,20.0,222.63,222.52,70.0]
[1733173911214,20.0,222.63,222.55,70.0]
[1733173911512,20.0,222.63,222.48,13.31760674]
[1733173911513,20.0,222.63,222.52,70.0]
[1733173911884,11.2298,222.62,222.52,70.0]
[1733173912221,20.0,222.59,222.49,70.0]
[1733173912590,20.0,222.59,222.46,70.0]
[1733173913617,20.0,222.57,222.43,70.0]
[1733173913930,5.0,222.6,222.43,70.0]
[1733173913931,11.2334,222.55,222.43,70.0]
[1733173914215,20.0,222.52,222.43,70.0]
[1733173915292,20.0,222.48,222.37,70.0]
[1733173915507,20.0,222.48,222.34,70.0]
[1733173915691,20.0,222.48,222.37,70.0]
[1733173916191,20.0,222.48,222.34,70.0]
[1733173916697,20.0,222.44,222.34,70.0]
[1733173918013,20.0,222.44,222.31,70.0]
[1733173918623,22.4749,222.47,222.31,70.0]
[1733173918895,20.0,222.44,222.31,70.0]
[1733173919509,20.0,222.44,222.34,70.0]
[1733173919704,11.2394,222.43,222.34,70.0]
[1733173920010,20.0,222.4,222.34,70.0]
[1733173920512,11.2377,222.47,222.38,70.0]
[1733173920730,33.6927,222.6,222.41,70.0]
[1733173921019,11.07989061,222.59,222.41,70.0]
[1733173921817,20.0,222.56,222.41,70.0]
[1733173922022,20.0,222.55,222.41,70.0]
[1733173922318,33.6957,222.58,222.44,70.0]
[1733173922817,39.14406937,222.58,222.44,70.0]
[1733173923599,16.68026937,222.58,222.47,70.0]
[1733173924197,5.44836937,222.58,222.51,70.0]
[1733173924532,5.0,222.7,222.43,0.89652407]
[1733173924533,2.90259945,222.68,222.54,70.0]
[1733173924824,5.32096568,222.72,222.57,70.0]
[1733173924825,11.2248,222.72,222.57,70.0]
[1733173925499,11.2248,222.72,222.6,70.0]
[1733173927114,20.0,222.69,222.6,70.0]
[1733173927532,20.0,222.66,222.6,70.0]
[1733173927696,20.0,222.66,222.57,70.0]
[1733173927901,20.0,222.66,222.58,70.0]
[1733173928796,5.32096568,222.71,222.61,70.0]
[1733173928997,5.32096568,222.78,222.67,70.0]
[1733173929234,11.2225,222.77,222.67,70.0]
[1733173931106,11.2225,222.77,222.7,70.0]
[1733173933511,20.0,222.74,222.7,70.0]
[1733173934199,11.2225,222.77,222.7,70.0]
[1733173935306,20.0,222.74,222.7,70.0]
[1733173935705,20.0,222.74,222.65,70.0]
[1733173936026,20.0,222.74,222.62,70.0]
[1733173936027,11.2241,222.74,222.62,70.0]
[1733173936601,20.0,222.71,222.62,70.0]
[1733173941502,11.222,222.78,222.7,70.0]
[1733173941706,15.05712504,222.79,222.7,70.0]
[1733173943005,26.27852504,222.79,222.7,70.0]
[1733173944314,20.0,222.76,222.67,70.0]
[1733173945538,11.2233,222.75,222.67,70.0]
[1733173947414,11.2233,222.75,222.56,16.2326]
[1733173947415,20.0,222.72,222.64,70.0]
[1733173948016,20.0,222.72,222.61,70.0]
[1733173949336,20.0,222.72,222.65,70.0]
[1733173950552,31.2252,222.72,222.65,70.0]
[1733173950754,11.2252,222.72,222.65,70.0]
[1733173951834,33.6669,222.77,222.65,70.0]
[1733173952138,20.0,222.74,222.65,70.0]
[1733173953530,11.2243,222.73,222.65,70.0]
[1733173954152,20.0,222.7,222.65,70.0]
[1733173955021,26.63683917,222.77,222.65,70.0]
[1733173955337,11.2228,222.76,222.65,70.0]
[1733173955541,11.2228,222.76,222.68,70.0]
[1733173956740,20.0,222.73,222.68,70.0]
[1733173958046,11.2228,222.76,222.64,70.0]
[1733173958047,20.0,222.74,222.64,70.0]
[1733173958243,20.0,222.73,222.64,70.0]
[1733173958446,25.32096568,222.73,222.64,70.0]
[1733173958740,20.0,222.71,222.64,70.0]
[1733173959340,20.0,222.7,222.64,70.0]
[1733173959558,31.2258,222.7,222.64,70.0]
[1733173959859,53.6775,222.7,222.6,70.0]
[1733173962571,31.2258,222.7,222.6,70.0]
[1733173966073,53.6775,222.7,222.56,70.0]
[1733173966546,53.6775,222.7,222.59,70.0]
[1733173967467,53.6775,222.7,222.56,70.0]
[1733173967996,57.87718837,222.7,222.56,70.0]
[1733173968945,4.19968837,222.69,222.56,70.0]
[1733173969957,33.6805,222.68,222.56,70.0]
[1733173970169,20.0,222.65,222.56,70.0]
[1733173971154,11.2288,222.64,222.56,70.0]
[1733173971672,20.0,222.61,222.49,70.0]
[1733173971875,20.0,222.6,222.49,70.0]
[1733173972059,20.0,222.58,222.45,70.0]
[1733173973249,4.19968837,222.58,222.45,70.0]
[1733173973466,20.0,222.54,222.42,70.0]
[1733173975171,33.7032,222.53,222.42,70.0]
[1733173975372,33.7032,222.53,222.35,13.32425811]
[1733173975373,20.0,222.5,222.37,70.0]
[1733173976265,20.0,222.5,222.34,70.0]
[1733173977280,20.0,222.46,222.34,70.0]
[1733173978270,11.2384,222.45,222.34,70.0]
[1733173978665,20.0,222.42,222.34,70.0]
[1733173980069,11.2384,222.45,222.37,70.0]
[1733173980378,11.2364,222.49,222.37,70.0]
[1733173980955,5.44836937,222.53,222.4,70.0]
[1733173981156,11.2347,222.53,222.43,70.0]
[1733173981973,11.2347,222.53,222.4,70.0]
[1733173982360,11.2347,222.53,222.44,70.0]
[1733173983061,11.2347,222.53,222.4,70.0]
[1733173983256,39.02446568,222.53,222.4,70.0]
[1733173983466,5.44836937,222.52,222.37,70.0]
[1733173983668,20.0,222.49,222.37,70.0]
[1733173983979,20.0,222.49,222.4,70.0]
[1733173984184,20.0,222.5,222.4,70.0]
[1733173984486,20.0,222.5,222.43,70.0]
[1733173985963,20.0,222.5,222.46,70.0]
[1733173986485,20.0,222.5,222.43,70.0]
[1733173989398,53.708,222.5,222.37,70.0]
[1733173989691,53.708,222.5,222.27,5.0]
[1733173989692,20.0,222.47,222.34,70.0]
[1733173989874,20.0,222.46,222.34,70.0]
[1733173990271,20.0,222.46,222.38,70.0]
[1733173990700,31.2383,222.46,222.38,70.0]
[1733173990878,31.2383,222.46,222.35,70.0]
[1733173991980,31.2383,222.46,222.38,83.32425811]
[1733173991981,35.43798837,222.46,222.38,83.32425811]
[1733173992286,11.2364,222.5,222.41,70.0]
[1733173992485,4.19968837,222.52,222.41,83.32425811]
[1733173993029,11.2354,222.51,222.41,83.32425811]
[1733173993209,11.2354,222.51,222.44,70.0]
[1733173993498,4.19968837,222.52,222.44,70.0]
[1733173993796,11.2338,222.55,222.47,70.0]
[1733173994583,19.74749599,222.55,222.43,70.0]
[1733173994802,9.64805774,222.54,222.43,70.0]
[1733173994984,20.0,222.51,222.43,70.0]
[1733173995698,9.64805774,222.54,222.43,70.0]
[1733173996320,11.2344,222.53,222.43,70.0]
[1733173997097,20.0,222.5,222.4,70.0]
[1733173997299,20.0,222.49,222.4,70.0]
[1733173997792,11.2369,222.48,222.37,70.0]
[1733173997986,20.0,222.45,222.37,70.0]
[1733173998194,24.19968837,222.45,222.34,70.0]
[1733173998421,20.0,222.43,222.34,70.0]
[1733173998808,20.0,222.43,222.37,70.0]
[1733173999015,20.0,222.43,222.35,70.0]
[1733173999529,20.0,222.43,222.32,70.0]
[1733173999693,24.19968837,222.43,222.32,70.0]
[1733173999896,11.2399,222.42,222.32,70.0]
[1733174000503,20.0,222.39,222.32,70.0]
[1733174009537,4.19968837,222.43,222.38,21.34967889]
[1733174009702,0.1200645,222.51,222.42,21.34967889]
[1733174009899,0.1200645,222.51,222.31,26.34967889]
[1733174009900,0.1200645,222.51,222.43,91.34967889]
[1733174010129,0.1200645,222.51,222.46,70.0]
[1733174011828,0.1200645,222.51,222.43,70.0]
[1733174012602,11.3558645,222.51,222.43,70.0]
[1733174012803,11.3558645,222.51,222.4,70.0]
[1733174012804,20.0,222.48,222.4,70.0]
[1733174014435,11.2372,222.48,222.4,70.0]
[1733174015222,20.0,222.49,222.4,70.0]
[1733174015533,20.0,222.49,222.43,70.0]
[1733174015831,11.2333,222.56,222.46,70.0]
[1733174018044,20.0,222.53,222.46,70.0]
[1733174018241,4.19968837,222.58,222.46,70.0]
[1733174018442,16.55216249,222.6,222.46,70.0]
[1733174018617,16.55216249,222.6,222.49,70.0]
[1733174020010,20.0,222.57,222.49,70.0]
[1733174020576,15.42888837,222.64,222.53,70.0]
[1733174020717,11.2292,222.64,222.53,70.0]
[1733174022042,5.32106249,222.66,222.56,70.0]
[1733174022339,11.2272,222.68,222.56,91.34967889]
[1733174022516,11.2272,222.68,222.57,21.34967889]
[1733174022718,13.90896761,222.67,222.57,21.34967889]
[1733174022919,11.2272,222.68,222.56,91.34967889]
[1733174023734,20.0,222.65,222.59,70.0]
[1733174024535,11.2272,222.68,222.59,70.0]
[1733174024946,11.2272,222.68,222.56,70.0]
[1733174025148,16.54826249,222.68,222.56,70.0]
[1733174025456,5.32106249,222.67,222.56,70.0]
[1733174025840,5.32106249,222.67,222.29,312.0]
[1733174025841,11.2278,222.66,222.59,70.0]
[1733174026937,22.4517,222.71,222.59,70.0]
[1733174026938,20.0,222.68,222.59,70.0]
[1733174028438,31.2271,222.68,222.59,70.0]
[1733174033275,11.2252,222.72,222.62,70.0]
[1733174033864,11.2252,222.72,222.65,70.0]
[1733174034773,11.2252,222.72,222.62,70.0]
[1733174035148,33.6676,222.77,222.62,70.0]
[1733174035359,20.0,222.74,222.62,70.0]
[1733174036239,11.2243,222.73,222.62,70.0]
[1733174036468,20.0,222.7,222.65,70.0]
[1733174039545,31.2258,222.7,222.62,70.0]
[1733174039862,20.0,222.69,222.62,70.0]
[1733174040476,20.0,222.67,222.62,70.0]
[1733174040967,11.2258,222.7,222.62,70.0]
[1733174041159,11.2258,222.7,222.62,70.89592818]
[1733174041357,11.2258,222.7,222.62,84.22166975]
[1733174041752,15.0554064,222.78,222.67,70.0]
[1733174041947,11.2228,222.76,222.67,70.0]
[1733174042350,15.0554064,222.78,222.7,70.0]
[1733174042573,4.28914933,222.81,222.73,70.0]
[1733174042879,4.28914933,222.87,222.73,70.0]
[1733174043873,20.0,222.85,222.76,70.0]
[1733174044070,20.0,222.85,222.73,70.0]
[1733174044271,20.0,222.85,222.7,21.29131991]
[1733174044470,20.0,222.85,222.7,21.00669649]
[1733174044665,20.0,222.85,222.75,70.0]
[1733174044864,20.0,222.81,222.75,70.0]
[1733174045951,31.2204,222.81,222.72,70.0]
[1733174046154,20.0,222.78,222.69,70.0]
[1733174046653,20.0,222.78,222.65,21.29131991]
[1733174046654,20.0,222.78,222.72,70.0]
[1733174046856,11.2204,222.81,222.72,70.0]
[1733174047478,11.2204,222.81,222.75,70.0]
[1733174048079,4.28914933,222.87,222.75,70.0]
[1733174048287,11.2178,222.86,222.75,70.0]
[1733174048458,20.0,222.83,222.68,70.0]
[1733174048657,20.0,222.79,222.68,70.0]
[1733174049590,20.0,222.79,222.65,70.0]
[1733174050288,20.0,222.79,222.7,70.0]
[1733174050497,20.0,222.75,222.7,70.0]
[1733174051792,20.0,222.78,222.7,70.0]
[1733174052085,20.0,222.78,222.7,70.89562894]
[1733174052289,20.0,222.78,222.74,70.0]
[1733174052488,20.0,222.78,222.72,70.0]
[1733174052967,20.0,222.78,222.66,70.0]
[1733174053161,20.0,222.78,222.69,70.0]
[1733174053870,31.222,222.78,222.69,70.0]
[1733174054066,31.222,222.78,222.72,70.0]
[1733174056494,11.2201,222.82,222.72,70.0]
[1733174056672,11.2201,222.82,222.75,70.0]
[1733174057575,33.6534,222.86,222.75,70.0]
[1733174057771,20.0,222.83,222.75,70.0]
[1733174058986,11.2198,222.82,222.75,70.0]
[1733174065876,11.2198,222.82,222.76,4.491]
[1733174072410,4.28914933,222.87,222.79,4.491]
[1733174072615,0.5266593,222.94,222.82,4.491]
[1733174072802,22.4295,222.92,222.82,4.491]
[1733174073011,26.71864933,222.92,222.82,4.491]
[1733174073521,8.09803116,222.91,222.82,4.491]
[1733174073692,8.02526738,222.9,222.82,4.491]
[1733174073897,11.2162,222.89,222.82,4.491]
[1733174074980,7.96597054,222.88,222.82,4.491]
[1733174075179,11.2162,222.89,222.82,4.491]
[1733174075796,4.28914933,222.92,222.86,4.491]
[1733174075992,11.2144,222.93,222.88,4.491]
[1733174077119,20.0,222.9,222.88,4.491]
[1733174077596,11.2144,222.93,222.87,70.0]
[1733174077793,11.2144,222.93,222.88,4.491]
[1733174079319,20.5266593,222.94,222.88,4.491]
[1733174086622,0.5266593,222.94,222.91,4.491]
[1733174086824,0.5266593,222.94,222.93,74.491]
[1733174088040,0.5266593,222.94,222.93,88.69202552]
[1733174088344,0.5266593,222.94,222.93,87.79735377]
[1733174088914,11.2064,223.09,223.01,4.491]
[1733174090038,15.49554933,223.09,223.01,4.491]
[1733174090440,4.28914933,223.09,223.04,4.491]
[1733174091420,4.28914933,223.09,223.03,70.0]
[1733174093148,11.2067,223.08,222.98,70.0]
[1733174093345,0.91949228,223.07,222.98,70.0]
[1733174093546,4.28914933,223.07,222.98,70.0]
[1733174094343,11.2077,223.06,222.98,70.0]
[1733174094646,4.28914933,223.05,222.98,70.0]
[1733174100042,4.28914933,223.05,223.01,70.0]
[1733174101258,4.28914933,223.05,223.04,70.0]
[1733174101460,4.28914933,223.13,223.05,4.491]
[1733174102452,4.28914933,223.13,223.09,70.0]
[1733174102958,4.28914933,223.13,223.12,70.0]
[1733174103136,0.02490935,223.15,223.12,70.0]
[1733174103335,0.02490935,223.15,223.12,74.491]
[1733174105133,0.02490935,223.15,223.09,70.0]
[1733174105556,4.28914933,223.14,223.09,70.0]
[1733174106547,4.28914933,223.14,223.12,70.0]
[1733174106755,0.02490935,223.15,223.12,70.0]
[1733174107158,0.02490935,223.15,223.12,74.491]
[1733174107460,0.02490935,223.15,223.06,70.0]
[1733174107664,11.2037,223.14,223.06,70.0]
[1733174108362,11.2037,223.14,223.06,74.491]
[1733174108659,11.2037,223.14,223.03,70.0]
[1733174108850,11.2057,223.1,223.03,70.0]
[1733174109367,11.2057,223.1,223.03,74.491]
[1733174110067,15.49284933,223.14,223.07,70.0]
[1733174110267,11.2037,223.14,223.07,74.491]
[1733174110559,0.02490935,223.15,223.1,70.0]
[1733174111261,0.02490935,223.15,223.14,70.0]
[1733174111643,0.02490935,223.15,223.14,74.491]
[1733174111844,0.02490935,223.15,223.14,4.491]
[1733174112362,0.02490935,223.15,223.13,4.491]
[1733174116865,0.02490935,223.15,223.12,70.0]
[1733174126680,0.02490935,223.15,223.12,70.89384515]
[1733174127372,0.02490935,223.15,223.12,84.20019892]
[1733174128286,0.02490935,223.15,223.12,70.0]
[1733174129896,0.02490935,223.15,223.12,83.30635377]
[1733174130578,0.02490935,223.15,223.13,13.30635377]
[1733174130783,0.02490935,223.15,223.14,13.30635377]
[1733174131296,0.02490935,223.15,223.14,37.08323777]
[1733174132209,11.1947,223.32,223.25,70.0]
[1733174132870,15.48234933,223.35,223.28,70.0]
[1733174133214,11.1932,223.35,223.28,70.0]
[1733174133901,16.04384971,223.38,223.28,70.0]
[1733174134197,16.04384971,223.38,223.23,0.89329561]
[1733174134198,15.76682944,223.38,223.33,70.0]
[1733174134376,15.76682944,223.38,223.36,70.0]
[1733174134377,0.5266593,223.38,223.36,70.0]
[1733174136096,0.5266593,223.38,223.33,70.0]
[1733174136993,0.5266593,223.38,223.3,70.0]
[1733174137780,20.0,223.36,223.3,70.0]
[1733174139206,20.5266593,223.38,223.3,70.0]
[1733174140290,31.7186593,223.38,223.27,70.0]
[1733174140494,20.0,223.37,223.27,70.0]
[1733174140725,20.0,223.35,223.27,70.0]
[1733174141091,11.1936,223.34,223.27,70.0]
[1733174141307,20.0,223.31,223.27,70.0]
[1733174141611,20.0,223.31,223.22,70.0]
[1733174141788,20.0,223.31,223.19,70.0]
[1733174141989,4.28914933,223.3,223.19,70.0]
[1733174142310,20.0,223.29,223.16,70.0]
[1733174142487,2.53809352,223.28,223.16,70.0]
[1733174142690,4.28914933,223.28,223.16,70.0]
[1733174143111,20.0,223.24,223.16,70.0]
[1733174143294,20.0,223.24,223.2,70.0]
[1733174143485,4.28914933,223.28,223.2,70.0]
[1733174143809,20.0,223.28,223.23,70.0]
[1733174144589,4.28914933,223.33,223.23,70.0]
[1733174144783,4.28914933,223.33,223.26,70.0]
[1733174146202,20.0,223.32,223.26,70.0]
[1733174146909,20.0,223.32,223.27,4.491]
[1733174148580,31.195,223.32,223.22,70.0]
[1733174148786,20.0,223.29,223.23,4.491]
[1733174148985,0.4,223.26,223.23,4.491]
[1733174149996,0.4,223.26,223.25,4.491]
[1733174150387,0.4,223.26,223.25,70.0]
[1733174151215,0.4,223.26,223.25,74.491]
[1733174151791,4.28914933,223.31,223.25,74.491]
[1733174152113,4.28914933,223.31,223.23,4.491]
[1733174152306,11.1957,223.3,223.23,4.491]
[1733174152511,4.28914933,223.31,223.25,70.0]
[1733174153524,7.90087645,223.39,223.29,70.0]
[1733174153699,7.90087645,223.39,223.26,4.491]
[1733174153700,4.28914933,223.39,223.34,70.0]
[1733174154091,4.28914933,223.39,223.3,70.0]
[1733174154291,15.48034933,223.39,223.3,70.0]
[1733174155525,15.48034933,223.39,223.34,70.0]
[1733174155764,4.28914933,223.39,223.34,70.0]
[1733174156098,11.1896,223.43,223.34,70.0]
[1733174157021,11.1896,223.43,223.37,70.0]
[1733174157210,20.0,223.4,223.37,70.0]
[1733174157527,11.1896,223.43,223.37,70.0]
[1733174157694,11.1896,223.43,223.34,70.0]
[1733174158495,11.1896,223.43,223.37,70.0]
[1733174158694,9.44140759,223.44,223.37,70.0]
[1733174158893,4.28914933,223.44,223.37,70.0]
[1733174160128,24.28914933,223.44,223.37,70.0]
[1733174161225,4.28914933,223.44,223.37,70.0]
[1733174161410,11.1874,223.47,223.37,74.491]
[1733174166814,11.1888,223.44,223.37,74.491]
[1733174167042,5.0,223.5,223.37,74.491]
[1733174167212,11.1901,223.41,223.32,70.0]
[1733174167414,4.28170014,223.42,223.29,70.0]
[1733174167711,11.7183593,223.38,223.29,70.0]
[1733174167932,11.7183593,223.38,223.3,4.491]
[1733174168258,0.5266593,223.38,223.35,70.0]
[1733174169047,0.5266593,223.38,223.36,4.491]
[1733174169251,0.5266593,223.38,223.33,4.491]
[1733174170312,0.5266593,223.38,223.35,4.491]
[1733174170514,0.5266593,223.38,223.2,21.2003]
[1733174170515,0.5266593,223.38,223.29,70.0]
[1733174171441,0.5266593,223.38,223.3,4.491]
[1733174171951,20.0,223.34,223.26,70.0]